bitfinex-derivatives/quotes_SOLF0:USTF0_20250831
["timestamp","ask_amount","ask_price","bid_price","bid_amount"]
[1756656956612,3.0227312,204.69,204.58,4.42523946]
[1756656956912,3.05,204.68,204.59,4.42523946]
[1756656957112,3.05,204.68,204.54,4.0928351]
[1756656957113,3.05,204.65,204.6,4.42523946]
[1756656957312,3.05,204.62,204.61,4.42523946]
[1756656957504,40.15,204.62,204.61,4.42523946]
[1756656959218,40.15,204.62,204.61,4.42859927]
[1756656960717,37.58,204.62,204.53,7.9]
[1756656960916,3.0227312,204.61,204.53,7.9]
[1756656961116,3.0227312,204.61,204.49,7.9]
[1756656962020,3.0227312,204.58,204.49,7.9]
[1756656962524,37.1,204.62,204.49,7.9]
[1756656962822,3.0227312,204.58,204.49,7.9]
[1756656964319,18.84,204.57,204.49,7.9]
[1756656966025,3.0227312,204.58,204.49,7.9]
[1756656966226,36.74,204.57,204.49,7.9]
[1756656966526,53.68,204.57,204.49,7.9]
[1756656968627,3.0227312,204.55,204.46,7.77]
[1756656970328,70.38,204.54,204.46,7.77]
[1756656971825,75.76,204.53,204.46,7.77]
[1756656972526,3.0227312,204.54,204.46,7.77]
[1756656972724,75.6,204.57,204.48,7.77]
[1756656972930,5.04,204.56,204.5,7.77]
[1756656973125,23.1,204.57,204.51,4.37904444]
[1756656973325,23.1,204.57,204.52,12.14904444]
[1756656973630,26.1227312,204.57,204.53,4.37904444]
[1756656973830,26.1227312,204.57,204.54,4.37904444]
[1756656974132,26.1227312,204.57,204.55,4.37904444]
[1756656974330,26.1227312,204.57,204.56,4.37904444]
[1756656975529,3.0227312,204.57,204.56,4.37904444]
[1756656975721,123.2027312,204.57,204.56,4.37904444]
[1756656976125,3.0227312,204.57,204.56,4.37904444]
[1756656976326,123.2027312,204.57,204.56,4.37904444]
[1756656976928,3.0227312,204.57,204.56,4.37904444]
[1756656977130,123.2027312,204.57,204.56,4.37904444]
[1756656978034,123.6827312,204.57,204.48,7.77]
[1756656978334,3.0227312,204.54,204.48,7.77]
[1756656983231,120.1,204.54,204.48,7.77]
[1756656983638,5.48003068,204.63,204.48,7.77]
[1756656983835,3.0227312,204.6,204.48,7.77]
[1756656984936,3.0227312,204.57,204.48,7.77]
[1756656985636,120.1,204.62,204.48,7.77]
[1756656985840,3.0227312,204.57,204.48,7.77]
[1756656987336,3.0227312,204.54,204.48,7.77]
[1756656987528,23.24,204.53,204.48,7.77]
[1756656992642,23.24,204.53,204.43,4.0928351]
[1756656992842,23.24,204.53,204.44,7.77]
[1756656997745,3.0227312,204.51,204.44,7.77]
[1756657000449,3.0227312,204.5,204.44,7.77]
[1756657000638,23.24,204.53,204.44,7.77]
[1756657000842,3.0227312,204.52,204.44,7.77]
[1756657003450,5.48003068,204.58,204.44,7.77]
[1756657003650,3.0227312,204.54,204.44,7.77]
[1756657003848,3.0227312,204.54,204.44,11.8628351]
[1756657004048,3.0227312,204.54,204.45,7.43]
[1756657004342,328.66,204.59,204.46,4.0928351]
[1756657004547,3.0227312,204.57,204.47,7.43]
[1756657005048,3.0227312,204.54,204.47,7.43]
[1756657005250,334.14003068,204.59,204.47,7.43]
[1756657005442,3.0227312,204.54,204.47,7.43]
[1756657005841,119.94,204.53,204.47,7.43]
[1756657007552,3.0227312,204.51,204.44,7.43]
[1756657007749,119.94,204.53,204.44,7.43]
[1756657007948,3.0227312,204.51,204.44,7.43]
[1756657008952,3.0227312,204.5,204.44,7.43]
[1756657009152,119.94,204.53,204.44,7.43]
[1756657009453,3.0227312,204.5,204.44,7.43]
[1756657010161,3.0227312,204.47,204.4,7.43]
[1756657010361,3.0227312,204.43,204.37,4.0928351]
[1756657010654,24.18,204.42,204.36,4.0928351]
[1756657010859,3.0227312,204.4,204.36,4.0928351]
[1756657011055,3.0227312,204.4,204.36,7.43]
[1756657011256,3.0227312,204.37,204.32,7.43]
[1756657011457,3.0227312,204.37,204.27,7.43]
[1756657014757,3.0227312,204.34,204.27,7.43]
[1756657015053,19.68,204.33,204.27,7.43]
[1756657016661,19.68,204.33,204.2,3.0227312]
[1756657016866,3.0227312,204.31,204.19,7.43]
[1756657017058,19.68,204.33,204.19,7.43]
[1756657017059,3.0227312,204.28,204.19,7.43]
[1756657017456,3.0227312,204.38,204.19,7.43]
[1756657017660,3.0227312,204.38,204.21,7.43]
[1756657017661,3.0227312,204.32,204.21,7.43]
[1756657019360,9.06,204.35,204.24,7.43]
[1756657020364,3.0227312,204.33,204.24,7.43]
[1756657023266,3.0227312,204.3,204.24,7.43]
[1756657023465,3.0227312,204.3,204.2,7.43]
[1756657024573,3.0227312,204.27,204.2,7.43]
[1756657024769,3.5,204.26,204.2,7.43]
[1756657024970,3.0227312,204.24,204.2,7.43]
[1756657025467,3.0227312,204.24,204.17,171.36096872]
[1756657026674,3.0227312,204.21,204.16,7.43]
[1756657027676,26.02,204.22,204.11,7.43]
[1756657027870,26.02,204.23,204.11,7.43]
[1756657029771,3.0227312,204.25,204.11,7.43]
[1756657029970,45.7,204.24,204.11,7.43]
[1756657030670,45.7,204.24,204.12,3.0227312]
[1756657031071,45.7,204.24,204.13,7.35]
[1756657031473,3.0227312,204.23,204.13,7.35]
[1756657035680,3.0227312,204.2,204.13,7.35]
[1756657039682,67.1427312,204.2,204.13,7.35]
[1756657044586,0.02,204.19,204.13,7.35]
[1756657046285,80.86,204.19,204.13,7.35]
[1756657047988,0.02,204.21,204.13,7.35]
[1756657048183,0.02,204.26,204.13,7.35]
[1756657048388,18.8627312,204.25,204.14,7.35]
[1756657048593,0.02,204.24,204.14,7.35]
[1756657048793,0.02,204.21,204.14,7.35]
[1756657049589,3.0427312,204.24,204.14,7.35]
[1756657049790,19.24,204.23,204.14,7.35]
[1756657051294,0.02,204.22,204.14,7.35]
[1756657052792,19.4,204.23,204.14,7.35]
[1756657055396,19.42,204.23,204.14,7.35]
[1756657060400,0.02,204.22,204.14,7.35]
[1756657069211,3.0427312,204.22,204.14,7.35]
[1756657070007,0.02,204.21,204.14,7.35]
[1756657070213,0.02,204.18,204.11,7.93]
[1756657070707,0.02,204.18,204.07,5.47083392]
[1756657070708,3.0227312,204.16,204.09,4.05491612]
[1756657070907,5.7,204.15,204.08,7.93]
[1756657074515,0.02,204.14,204.08,7.93]
[1756657076018,0.02,204.12,204.08,7.93]
[1756657076213,3.0227312,204.13,204.08,7.93]
[1756657076419,0.02,204.12,204.08,7.93]
[1756657076619,3.0227312,204.13,204.08,7.93]
[1756657076814,0.02,204.12,204.08,7.93]
[1756657078119,0.02,204.12,204.03,7.07764732]
[1756657078318,0.02,204.12,204.04,7.93]
[1756657080323,3.0227312,204.11,204.04,7.93]
[1756657081520,0.02,204.12,204.04,7.93]
[1756657082231,0.02,204.17,204.04,7.93]
[1756657082419,23.42,204.16,204.05,3.0227312]
[1756657082622,23.42,204.16,204.06,7.93]
[1756657083313,329.22,204.19,204.08,3.0227312]
[1756657083519,329.22,204.19,204.09,7.93]
[1756657083916,0.02,204.18,204.09,7.93]
[1756657084114,3.0227312,204.17,204.09,7.93]
[1756657085018,0.02,204.13,204.05,7.93]
[1756657085320,120.6,204.12,204.05,7.93]
[1756657088928,0.02,204.11,204.05,7.93]
[1756657090931,120.58,204.1,204.02,7.98]
[1756657091830,0.02,204.11,204.02,7.98]
[1756657092031,120.56,204.1,204.02,7.98]
[1756657093134,0.02,204.09,204.02,7.98]
[1756657094025,0.02,204.09,203.96,11.0027312]
[1756657094327,123.5827312,204.1,203.97,7.98]
[1756657094537,0.02,204.06,203.97,7.98]
[1756657099232,0.02,204.03,203.97,7.98]
[1756657099441,0.02,204.01,203.97,7.98]
[1756657099735,81.76,204.02,203.97,7.98]
[1756657100129,0.02,204.01,203.97,7.98]
[1756657100533,81.76,204.02,203.97,7.98]
[1756657100733,0.02,204.01,203.97,7.98]
[1756657101134,81.76,204.02,203.97,7.98]
[1756657101435,3.0427312,204.01,203.91,7.98]
[1756657105540,3.0227312,204.01,203.91,7.98]
[1756657106034,3.0227312,203.98,203.91,7.98]
[1756657107132,3.0227312,203.97,203.91,7.98]
[1756657108140,81.76,204.02,203.91,7.98]
[1756657108337,120.48,204.01,203.91,7.98]
[1756657108530,123.5027312,204.01,203.91,7.98]
[1756657109240,3.0227312,204.01,203.91,7.98]
[1756657109439,120.46,204.0,203.91,7.98]
[1756657109637,3.0227312,204.04,203.91,3.0227312]
[1756657109940,120.58,204.03,203.92,7.98]
[1756657110333,3.0227312,204.0,203.92,7.98]
[1756657112342,120.62,203.99,203.92,7.98]
[1756657113245,329.44,204.05,203.92,7.98]
[1756657113445,3.0227312,204.03,203.92,7.98]
[1756657114146,3.0227312,204.0,203.92,7.98]
[1756657115642,3.0227312,203.97,203.92,7.98]
[1756657115846,120.66,203.96,203.86,7.98]
[1756657116047,3.0227312,203.98,203.86,7.98]
[1756657116246,120.66,203.97,203.86,7.98]
[1756657116547,120.66,203.96,203.86,7.98]
[1756657116844,120.66,203.96,203.89,7.98]
[1756657118338,0.02,204.03,203.91,3.0227312]
[1756657118648,120.68,204.02,203.92,7.32]
[1756657120947,120.68,204.02,203.89,4.05491612]
[1756657120948,329.44,204.05,203.95,7.32]
[1756657121250,120.72,204.04,203.95,7.32]
[1756657122551,329.44,204.05,203.95,7.32]
[1756657122747,120.7,204.05,203.95,7.32]
[1756657123643,0.02,204.04,203.95,7.32]
[1756657129651,0.02,204.13,203.97,3.0227312]
[1756657129956,0.02,204.07,203.98,7.32]
[1756657130856,3.0227312,204.08,203.98,7.32]
[1756657131046,0.02,204.07,203.98,7.32]
[1756657132753,5.48003068,204.13,203.99,3.0227312]
[1756657132954,0.02,204.1,204.0,7.32]
[1756657134148,120.62,204.09,204.0,7.32]
[1756657134761,0.02,204.1,204.02,7.32]
[1756657134961,120.66,204.09,204.02,7.32]
[1756657135166,120.68,204.09,204.02,7.32]
[1756657135758,120.66,204.09,204.02,7.32]
[1756657136560,0.02,204.13,204.02,7.32]
[1756657136766,120.7,204.12,204.05,7.32]
[1756657140171,0.02,204.09,204.01,7.32]
[1756657140675,0.02,204.06,203.97,7.32]
[1756657140970,120.76,204.05,203.97,7.32]
[1756657141173,3.0427312,204.04,203.97,7.32]
[1756657141371,0.02,204.03,203.93,7.32]
[1756657144474,120.8,204.02,203.93,7.32]
[1756657146674,0.02,204.01,203.93,7.32]
[1756657147873,3.0227312,204.01,203.89,7.67]
[1756657148176,0.03,204.0,203.89,7.67]
[1756657148476,0.03,203.97,203.89,7.67]
[1756657152177,3.72,203.96,203.89,7.67]
[1756657152974,0.03,203.95,203.89,7.67]
[1756657156481,8.04,203.94,203.89,7.67]
[1756657156681,8.04,203.94,203.85,7.67]
[1756657157785,10.98,203.95,203.85,7.67]
[1756657157980,3.0227312,203.96,203.85,7.67]
[1756657158184,13.9,203.95,203.85,7.67]
[1756657158384,42.02,203.95,203.85,7.67]
[1756657158580,68.74,203.95,203.85,7.67]
[1756657159686,3.0227312,203.96,203.85,7.67]
[1756657159987,8.68,203.95,203.85,7.67]
[1756657160486,3.0227312,203.96,203.85,7.67]
[1756657160687,26.8,203.95,203.85,7.67]
[1756657161288,3.0527312,203.96,203.85,7.67]
[1756657161485,18.36,203.95,203.85,7.67]
[1756657162291,35.68,203.95,203.85,7.67]
[1756657162800,3.0527312,203.96,203.85,7.67]
[1756657163096,52.1,203.95,203.85,7.67]
[1756657167692,0.03,203.96,203.89,7.67]
[1756657168996,329.54,204.02,203.92,7.67]
[1756657169292,329.54,204.02,203.95,7.67]
[1756657169498,450.1,204.02,203.95,7.67]
[1756657169694,329.54,204.02,203.95,7.67]
[1756657172603,3.0227312,204.0,203.9,7.67]
[1756657173902,3.0227312,203.97,203.9,7.67]
[1756657174199,120.68,203.96,203.87,7.67]
[1756657174897,123.7027312,203.96,203.87,7.67]
[1756657181006,3.0227312,203.96,203.87,7.67]
[1756657181197,18.68,203.95,203.87,7.67]
[1756657182407,36.2,203.95,203.87,7.67]
[1756657183508,52.72,203.98,203.89,7.33]
[1756657184505,52.72,203.98,203.86,10.3527312]
[1756657184506,3.0227312,203.97,203.86,10.3527312]
[1756657185605,3.0227312,203.97,203.86,7.33]
[1756657187305,68.82,203.96,203.86,7.33]
[1756657188504,3.0227312,203.97,203.86,7.33]
[1756657188704,8.36,203.96,203.86,7.33]
[1756657191011,3.0227312,204.0,203.88,7.33]
[1756657191211,3.0227312,204.0,203.86,4.05491612]
[1756657191212,120.52,203.99,203.89,7.07764732]
[1756657191411,120.52,203.99,203.9,7.33]
[1756657191606,120.52,203.99,203.9,10.3527312]
[1756657191802,120.52,203.99,203.91,7.33]
[1756657192009,329.54,204.02,203.91,11.38491612]
[1756657192208,120.54,204.01,203.92,7.33]
[1756657193712,329.54,204.02,203.92,7.33]
[1756657193913,120.56,204.01,203.92,7.33]
[1756657194808,3.0227312,204.0,203.89,11.38491612]
[1756657195007,3.0227312,204.0,203.89,7.33]
[1756657198807,3.0227312,204.0,203.89,10.3527312]
[1756657199005,120.56,204.01,203.89,10.3527312]
[1756657199006,120.56,204.01,203.9,7.33]
[1756657202810,329.54,204.02,203.9,7.33]
[1756657203111,329.54,204.02,203.95,7.33]
[1756657203112,450.24,204.02,203.95,7.33]
[1756657203306,450.24,204.02,203.98,7.33]
[1756657203509,3.0227312,204.07,203.98,7.33]
[1756657203813,120.8,204.06,203.99,4.42334487]
[1756657204010,120.8,204.06,204.0,4.42334487]
[1756657204224,120.8,204.06,204.01,4.42334487]
[1756657204410,120.8,204.06,204.02,4.42334487]
[1756657204610,120.8,204.06,204.03,4.42334487]
[1756657204807,120.8,204.06,203.94,7.07764732]
[1756657204808,3.0227312,204.05,204.04,4.42334487]
[1756657205307,3.0227312,204.05,203.94,7.33]
[1756657207314,3.0227312,204.02,203.91,14.40764732]
[1756657207513,120.92,204.01,203.91,10.3527312]
[1756657207918,123.9427312,204.01,203.91,10.3527312]
[1756657208115,123.9427312,204.01,203.91,7.33]
[1756657209516,123.9427312,204.01,203.91,10.3527312]
[1756657209710,123.9427312,204.01,203.92,7.9]
[1756657209911,3.0227312,204.04,203.92,7.9]
[1756657210116,68.78,204.03,203.93,7.9]
[1756657210311,329.54,204.07,203.94,3.0227312]
[1756657210513,120.94,204.06,203.95,7.9]
[1756657210720,332.5627312,204.07,203.95,11.95491612]
[1756657210920,120.96,204.06,203.97,3.0227312]
[1756657211120,332.5627312,204.07,203.97,3.0227312]
[1756657211121,329.54,204.07,203.98,7.9]
[1756657211322,121.0,204.06,203.98,7.9]
[1756657211921,121.0,204.06,204.0,3.0227312]
[1756657212120,121.0,204.06,204.01,7.9]
[1756657212323,121.0,204.06,204.0,3.0227312]
[1756657212915,121.0,204.06,204.01,7.9]
[1756657213321,121.0,204.06,204.0,3.0227312]
[1756657213913,121.0,204.06,204.01,7.9]
[1756657214114,121.0,204.06,204.0,10.9227312]
[1756657214621,121.0,204.06,203.99,3.0227312]
[1756657214822,121.0,204.06,203.96,7.9]
[1756657215425,121.0,204.06,203.92,4.05491612]
[1756657215617,121.0,204.06,203.93,3.0227312]
[1756657217122,121.0,204.06,203.94,7.9]
[1756657221639,3.0227312,204.04,203.9,14.97764732]
[1756657221836,3.0227312,204.01,203.9,10.9227312]
[1756657222031,44.98,204.0,203.9,10.9227312]
[1756657224438,0.03,203.99,203.9,10.9227312]
[1756657225536,0.03,203.99,203.88,4.05491612]
[1756657225741,44.98,204.0,203.87,7.9]
[1756657225742,0.03,203.97,203.87,7.9]
[1756657228345,0.03,203.97,203.87,10.9227312]
[1756657228638,17.81,203.97,203.89,3.0227312]
[1756657228846,17.81,203.97,203.9,7.9]
[1756657231244,17.81,203.97,203.9,10.9227312]
[1756657233747,0.03,204.01,203.91,7.9]
[1756657234049,20.73,204.01,203.94,7.9]
[1756657234443,0.03,204.01,203.94,7.9]
[1756657234641,39.85,204.04,203.94,7.9]
[1756657235747,39.85,204.04,203.94,10.9227312]
[1756657235950,0.03,204.03,203.93,4.05491612]
[1756657236144,3.0227312,204.03,203.9,7.9]
[1756657236847,0.03,204.02,203.9,7.9]
[1756657237048,3.0227312,204.03,203.9,7.9]
[1756657238446,0.03,204.02,203.9,7.9]
[1756657239553,3.0227312,204.03,203.9,7.9]
[1756657240148,3.0227312,204.0,203.9,7.9]
[1756657240347,0.03,203.99,203.86,11.42491612]
[1756657240545,3.0227312,204.0,203.86,11.42491612]
[1756657240945,0.03,203.99,203.87,7.37]
[1756657241549,3.0227312,203.97,203.87,7.37]
[1756657241753,24.28,203.96,203.87,7.37]
[1756657242450,0.03,203.93,203.87,7.37]
[1756657242853,0.03,203.93,203.83,11.42491612]
[1756657243151,0.03,203.93,203.83,7.37]
[1756657245555,24.31,203.96,203.85,7.37]
[1756657246055,0.03,203.95,203.85,7.37]
[1756657246956,3.0527312,203.95,203.85,7.37]
[1756657247156,33.38,203.96,203.87,7.37]
[1756657247754,3.0227312,203.98,203.87,7.37]
[1756657247954,53.92,203.97,203.87,7.37]
[1756657248156,3.0227312,203.98,203.87,7.37]
[1756657248454,22.78,203.97,203.87,7.37]
[1756657250555,22.78,203.97,203.87,4.05491612]
[1756657250859,22.78,203.97,203.88,7.37]
[1756657251760,0.03,203.96,203.88,7.37]
[1756657254366,22.46,203.98,203.88,7.37]
[1756657256570,0.03,203.97,203.88,7.37]
[1756657257958,3.0527312,204.0,203.9,7.37]
[1756657258163,21.39,204.0,203.9,7.37]
[1756657258566,0.03,204.0,203.9,7.37]
[1756657258868,41.69,204.0,203.9,7.37]
[1756657260871,0.03,204.0,203.9,7.37]
[1756657261264,0.03,204.0,203.9,10.3927312]
[1756657261573,0.03,204.0,203.91,7.37]
[1756657262165,0.03,204.0,203.92,7.37]
[1756657262369,3.0427312,204.03,203.93,3.0227312]
[1756657262571,3.0427312,204.03,203.94,7.37]
[1756657264172,0.02,204.06,203.94,7.37]
[1756657264374,121.0,204.06,203.97,7.37]
[1756657265464,329.54,204.07,204.0,7.37]
[1756657267473,329.54,204.07,204.0,10.3927312]
[1756657267674,329.54,204.07,204.01,7.37]
[1756657270478,329.54,204.07,204.01,10.3927312]
[1756657271573,329.54,204.07,204.01,7.37]
[1756657271773,329.54,204.07,204.03,7.86]
[1756657273876,332.5627312,204.07,203.95,4.05491612]
[1756657274082,3.0227312,204.04,203.94,7.86]
[1756657274376,121.0,204.03,203.94,7.86]
[1756657275583,121.0,204.03,203.92,3.0227312]
[1756657276984,3.0227312,204.04,203.93,7.86]
[1756657277294,121.0,204.03,203.93,7.86]
[1756657277493,3.0227312,204.04,203.93,7.86]
[1756657277793,121.0,204.03,203.93,7.86]
[1756657279392,121.0,204.03,203.9,3.0227312]
[1756657279591,121.0,204.03,203.91,7.86]
[1756657281191,3.0227312,204.04,203.91,7.86]
[1756657281389,11.66,204.03,203.94,7.86]
[1756657281691,11.66,204.03,203.91,3.0227312]
[1756657281888,32.5,204.02,203.92,7.86]
[1756657282888,32.5,204.02,203.91,3.0227312]
[1756657283096,32.5,204.02,203.89,7.86]
[1756657283293,3.0227312,204.0,203.87,7.07764732]
[1756657283587,3.0227312,204.0,203.87,3.0227312]
[1756657283784,3.0227312,204.0,203.86,10.8827312]
[1756657283984,32.5,204.02,203.86,7.86]
[1756657283985,3.0227312,203.97,203.86,7.86]
[1756657284181,28.84,203.96,203.86,7.86]
[1756657284595,3.0227312,203.97,203.86,7.86]
[1756657284791,50.36,203.95,203.86,7.86]
[1756657288701,3.0227312,204.0,203.87,3.0227312]
[1756657288894,66.42,203.99,203.87,3.0227312]
[1756657289197,85.32,203.98,203.88,7.86]
[1756657290193,85.32,203.98,203.88,10.8827312]
[1756657291195,3.0227312,204.02,203.89,7.86]
[1756657291398,22.1,204.01,203.89,7.86]
[1756657293096,43.1,204.0,203.92,7.86]
[1756657293700,3.0227312,204.05,203.94,3.0227312]
[1756657293898,121.18,204.04,203.94,3.0227312]
[1756657295098,121.18,204.04,203.95,7.86]
[1756657296397,3.0227312,204.06,203.95,7.86]
[1756657296604,121.14,204.05,203.96,3.0227312]
[1756657296902,3.0227312,204.03,203.93,3.0227312]
[1756657297304,3.0227312,204.03,203.91,7.86]
[1756657298199,0.02,204.02,203.91,7.86]
[1756657298804,3.0227312,204.04,203.91,7.86]
[1756657299300,0.02,204.03,203.91,7.86]
[1756657299501,3.0227312,204.04,203.91,7.86]
[1756657299803,0.02,204.03,203.91,7.86]
[1756657300005,3.0227312,204.04,203.91,7.86]
[1756657300199,0.02,204.03,203.91,7.86]
[1756657300702,3.0227312,204.04,203.92,4.41722994]
[1756657300905,0.02,204.03,203.93,4.41722994]
[1756657301103,3.0227312,204.04,203.94,4.41722994]
[1756657301403,3.0227312,204.04,203.95,4.41722994]
[1756657301705,0.02,204.03,203.96,4.41722994]
[1756657301902,0.02,204.03,203.97,4.41722994]
[1756657302106,3.0227312,204.04,203.98,4.41722994]
[1756657302305,3.0227312,204.04,203.99,4.41722994]
[1756657302502,3.0227312,204.04,204.0,4.41722994]
[1756657302707,0.02,204.03,204.01,4.41722994]
[1756657303007,0.02,204.03,203.93,7.32]
[1756657303208,0.02,204.03,203.94,4.41697309]
[1756657303507,0.02,204.03,203.95,4.41697309]
[1756657303705,0.02,204.03,203.96,4.41697309]
[1756657303910,0.02,204.03,203.97,4.41697309]
[1756657304102,3.0227312,204.04,203.98,4.41697309]
[1756657304296,3.0227312,204.04,203.99,4.41697309]
[1756657304501,0.02,204.03,204.0,4.41697309]
[1756657304701,3.0227312,204.04,204.01,4.41697309]
[1756657305007,3.0227312,204.04,203.89,7.32]
[1756657305202,3.0227312,203.99,203.89,7.32]
[1756657305402,102.54,203.98,203.84,4.11073874]
[1756657305603,102.54,203.98,203.86,3.0227312]
[1756657306010,3.0227312,203.96,203.85,7.32]
[1756657306909,3.0227312,203.93,203.85,7.32]
[1756657307703,3.0227312,203.9,203.81,7.32]
[1756657307909,24.68,203.89,203.81,7.32]
[1756657308508,24.68,203.89,203.76,4.11073874]
[1756657308509,24.68,203.89,203.76,7.32]
[1756657309011,3.0227312,203.87,203.76,7.32]
[1756657309510,3.0227312,203.84,203.76,7.32]
[1756657310207,3.0227312,203.84,203.71,3.0227312]
[1756657310507,3.0227312,203.84,203.72,7.32]
[1756657312116,24.68,203.89,203.72,7.32]
[1756657312117,3.0227312,203.81,203.72,7.32]
[1756657312507,18.2,203.8,203.72,7.32]
[1756657313908,25.88,203.81,203.73,7.32]
[1756657314213,25.9,203.82,203.76,7.32]
[1756657314407,44.04,203.83,203.76,7.32]
[1756657314607,64.04,203.83,203.76,7.32]
[1756657315614,329.54,203.93,203.76,7.32]
[1756657315911,3.0227312,203.89,203.76,7.32]
[1756657316616,3.0227312,203.89,203.77,3.0227312]
[1756657316912,3.0227312,203.89,203.76,10.3427312]
[1756657317411,3.0227312,203.89,203.77,7.32]
[1756657317706,42.3,203.88,203.77,7.32]
[1756657317912,3.0227312,203.91,203.79,3.0227312]
[1756657318212,3.0227312,203.91,203.8,7.32]
[1756657318412,121.3,203.9,203.8,7.32]
[1756657320909,329.54,203.93,203.83,7.32]
[1756657321115,121.28,203.92,203.83,7.32]
[1756657321610,121.28,203.92,203.84,3.0227312]
[1756657321815,121.28,203.92,203.85,7.32]
[1756657322210,121.34,203.92,203.85,7.32]
[1756657323004,450.86,203.93,203.85,7.32]
[1756657323205,329.54,203.93,203.88,7.32]
[1756657323411,329.54,203.93,203.87,3.0227312]
[1756657323806,329.54,203.93,203.88,7.32]
[1756657324411,329.54,203.93,203.87,3.0227312]
[1756657324616,121.32,203.94,203.88,7.32]
[1756657325509,3.0227312,204.01,203.88,7.32]
[1756657325714,21.94,204.0,203.88,7.32]
[1756657326717,21.94,204.0,203.88,10.3427312]
[1756657327219,3.0227312,204.01,203.88,10.3427312]
[1756657327416,42.74,203.99,203.88,10.3427312]
[1756657327712,84.7427312,203.98,203.88,7.32]
[1756657327915,81.72,203.97,203.88,7.32]
[1756657328217,81.72,203.97,203.85,3.0227312]
[1756657329011,81.72,203.97,203.86,7.23]
[1756657341728,84.7427312,203.97,203.86,7.23]
[1756657347638,3.0227312,203.97,203.86,7.23]
[1756657347840,97.9,203.96,203.86,7.23]
[1756657349641,113.1,203.95,203.87,3.0227312]
[1756657349841,113.1,203.95,203.88,7.23]
[1756657350136,330.55333856,204.05,203.88,7.23]
[1756657350342,120.94,204.04,203.91,7.23]
[1756657358948,120.94,204.04,203.93,10.8027312]
[1756657359847,120.94,204.04,203.93,7.78]
[1756657360451,3.0227312,204.03,203.93,7.78]
[1756657361345,120.7,204.02,203.93,7.78]
[1756657361545,3.0227312,204.03,203.93,7.78]
[1756657361546,120.68,204.01,203.93,7.78]
[1756657361949,329.7,204.05,203.95,7.78]
[1756657362146,120.72,204.04,203.95,7.78]
[1756657362854,120.72,204.04,203.96,4.47405251]
[1756657363054,120.72,204.04,203.97,4.47405251]
[1756657363247,120.72,204.04,203.98,4.47405251]
[1756657363447,120.72,204.04,203.99,4.47405251]
[1756657363644,120.72,204.04,204.0,4.47405251]
[1756657363849,120.72,204.04,204.01,4.47405251]
[1756657364149,120.72,204.04,204.02,4.47405251]
[1756657364349,120.72,204.04,204.03,4.47405251]
[1756657365646,121.22,204.04,203.91,4.11073874]
[1756657365852,3.0227312,203.98,203.92,4.4750406]